bitfinex-derivatives/quotes_BTCF0:USTF0_20250926
["timestamp","ask_amount","ask_price","bid_price","bid_amount"]
[1758903010423,1.24766,109300.0,109290.0,0.45917454]
[1758903011321,1.3390957,109300.0,109290.0,0.45917454]
[1758903011525,1.67142604,109300.0,109290.0,0.45917454]
[1758903011830,1.57999034,109300.0,109290.0,0.45917454]
[1758903012425,2.07142604,109300.0,109290.0,0.02244]
[1758903012617,0.1210641,109290.0,109280.0,0.1140383]
[1758903012819,0.78572478,109290.0,109280.0,0.0914483]
[1758903013227,0.45339444,109290.0,109280.0,0.1140383]
[1758903013922,0.47723224,109290.0,109280.0,0.1140383]
[1758903014718,0.47723224,109290.0,109270.0,0.45933604]
[1758903014719,0.1140323,109280.0,109270.0,0.45933604]
[1758903015030,0.44636264,109280.0,109270.0,0.1270057]
[1758903015230,1.30984264,109280.0,109270.0,0.1270057]
[1758903015631,1.30984264,109280.0,109270.0,0.1140457]
[1758903015632,1.32132264,109280.0,109270.0,0.1140457]
[1758903015933,1.30984264,109280.0,109270.0,0.45970604]
[1758903016421,1.30980264,109280.0,109270.0,0.45970604]
[1758903016919,0.9774723,109280.0,109270.0,0.45970604]
[1758903017125,1.30980264,109280.0,109270.0,0.45970604]
[1758903017830,1.32128264,109280.0,109270.0,0.44637604]
[1758903018020,1.32228264,109280.0,109270.0,0.0914557]
[1758903018326,1.32228264,109280.0,109260.0,0.01273]
[1758903018533,0.45563104,109270.0,109260.0,0.1267838]
[1758903018925,1.31895104,109270.0,109260.0,0.1140538]
[1758903019229,0.8859,109270.0,109260.0,0.45971414]
[1758903019424,0.02258,109270.0,109260.0,0.79204448]
[1758903019631,0.1210696,109290.0,109280.0,0.1273723]
[1758903019930,0.90965356,109290.0,109280.0,0.45970264]
[1758903020128,0.88586,109290.0,109280.0,0.45970264]
[1758903020931,0.88582,109290.0,109280.0,0.45970264]
[1758903021827,0.88578,109290.0,109280.0,0.45970264]
[1758903022028,0.02258,109290.0,109280.0,0.45970264]
[1758903022229,0.88578,109290.0,109280.0,0.45970264]
[1758903022429,0.4748156,109300.0,109290.0,0.0914441]
[1758903022638,1.3379756,109300.0,109290.0,0.42268629]
[1758903023136,0.4748156,109300.0,109290.0,0.42268629]
[1758903023337,1.3379356,109300.0,109290.0,0.42268629]
[1758903023637,1.64251779,109300.0,109290.0,0.02259]
[1758903023839,1.64251779,109300.0,109290.0,0.1140341]
[1758903024535,1.3471956,109300.0,109290.0,0.1140341]
[1758903024737,1.64251779,109300.0,109290.0,0.1140341]
[1758903025534,1.64251779,109300.0,109290.0,0.02259]
[1758903025931,0.1140241,109290.0,109280.0,0.1273659]
[1758903026235,0.41638629,109290.0,109280.0,0.1140425]
[1758903027031,1.27930629,109290.0,109280.0,0.1140425]
[1758903027232,0.1170241,109290.0,109280.0,0.1273725]
[1758903027432,0.9799441,109290.0,109280.0,0.1273725]
[1758903027633,0.1170241,109290.0,109280.0,0.1273725]
[1758903027833,0.9799041,109290.0,109280.0,0.1273725]
[1758903028041,0.1170241,109290.0,109280.0,0.1273725]
[1758903028241,0.9798641,109290.0,109280.0,0.1273725]
[1758903029243,0.1170241,109290.0,109280.0,0.1273725]
[1758903029634,0.9798241,109290.0,109280.0,0.1273725]
[1758903029844,0.9768241,109290.0,109280.0,0.1273725]
[1758903030045,0.9778241,109290.0,109280.0,0.1273725]
[1758903030645,0.1150241,109290.0,109280.0,0.1273725]
[1758903030842,0.9777441,109290.0,109280.0,0.1273725]
[1758903031146,0.1150241,109290.0,109280.0,0.1273725]
[1758903031846,0.02358,109290.0,109280.0,0.42269469]
[1758903032243,0.88622,109290.0,109280.0,0.1273725]
[1758903032553,0.88622,109290.0,109280.0,0.42269469]
[1758903033457,0.9776641,109290.0,109280.0,0.1273725]
[1758903034848,0.9847041,109290.0,109280.0,0.1140425]
[1758903036048,0.0914581,109280.0,109270.0,0.0914551]
[1758903036353,0.41746029,109280.0,109270.0,0.0914551]
[1758903036745,0.41746029,109280.0,109270.0,0.1141951]
[1758903037651,0.1221381,109280.0,109270.0,0.1141951]
[1758903038050,0.9844581,109280.0,109270.0,0.1141951]
[1758903039452,1.27978029,109280.0,109270.0,0.1141951]
[1758903040046,0.41746029,109280.0,109270.0,0.1141951]
[1758903040246,1.27970029,109280.0,109270.0,0.1141951]
[1758903041356,0.41746029,109280.0,109270.0,0.1141951]
[1758903041656,1.27962029,109280.0,109270.0,0.1141951]
[1758903042658,0.9842981,109280.0,109270.0,0.1141951]
[1758903042858,1.27962029,109280.0,109270.0,0.1141951]
[1758903043958,0.41746029,109280.0,109270.0,0.1141951]
[1758903044650,0.9748781,109280.0,109270.0,0.1272651]
[1758903044952,0.88342,109280.0,109270.0,0.42258729]
[1758903045257,0.4614997,109300.0,109290.0,0.1272541]
[1758903045258,0.4736597,109300.0,109290.0,0.1272541]
[1758903045447,1.35946825,109300.0,109290.0,0.1272541]
[1758903045645,1.35946804,109300.0,109290.0,0.1272541]
[1758903045856,0.49750804,109300.0,109290.0,0.1272541]
[1758903046158,1.35942804,109300.0,109290.0,0.1272541]
[1758903046459,0.50150804,109300.0,109290.0,0.1272541]
[1758903046659,1.36342804,109300.0,109290.0,0.1272541]
[1758903046853,0.41006834,109300.0,109290.0,0.42257629]
[1758903047056,1.2481,109300.0,109290.0,0.82257629]
[1758903047255,1.3395358,109300.0,109290.0,0.82257629]
[1758903047657,1.2481,109300.0,109290.0,0.82257629]
[1758903048464,1.3395358,109300.0,109290.0,0.82257629]
[1758903048661,1.3394158,109300.0,109290.0,0.82257629]
[1758903049056,0.38622,109300.0,109290.0,0.82257629]
[1758903050162,0.38222,109300.0,109290.0,0.82257629]
[1758903051762,0.4736559,109300.0,109290.0,0.82257629]
[1758903053965,0.3608,109300.0,109290.0,0.82257629]
[1758903054163,0.3608,109300.0,109290.0,0.91407178]
[1758903054961,0.3608,109300.0,109290.0,0.61874959]
[1758903055163,0.3618,109300.0,109290.0,0.91407178]
[1758903057065,0.38322,109300.0,109290.0,0.51407178]
[1758903057270,0.38322,109300.0,109290.0,0.21874959]
[1758903057461,0.38322,109300.0,109290.0,0.51407178]
[1758903060368,0.4746556,109300.0,109290.0,0.51407178]
[1758903060570,0.38322,109300.0,109290.0,0.51407178]
[1758903061071,0.3618,109300.0,109290.0,0.91407178]
[1758903063671,0.3618,109300.0,109290.0,1.77491178]
[1758903063974,0.3618,109300.0,109290.0,1.77487178]
[1758903064275,0.3618,109300.0,109290.0,1.77483178]
[1758903064573,0.3618,109300.0,109290.0,0.91407178]
[1758903064772,0.38322,109300.0,109290.0,1.77479178]
[1758903065474,0.38322,109300.0,109290.0,0.91407178]
[1758903065771,0.38322,109300.0,109290.0,1.37475178]
[1758903066472,0.3618,109300.0,109290.0,1.37475178]
[1758903067576,0.38352,109300.0,109290.0,0.51407178]
[1758903069675,0.38352,109300.0,109290.0,0.21874959]
[1758903069865,0.38352,109300.0,109290.0,0.51407178]
[1758903070174,0.4749557,109300.0,109290.0,0.42257629]
[1758903070376,0.38352,109300.0,109290.0,0.42257629]
[1758903073578,0.4749556,109300.0,109290.0,0.42257629]
[1758903073771,0.4749556,109300.0,109290.0,0.1272541]
[1758903074170,0.4749556,109300.0,109290.0,0.42257629]
[1758903074880,0.4749556,109300.0,109290.0,0.1272541]
[1758903075076,0.8842156,109300.0,109290.0,0.1141841]
[1758903075277,1.17953779,109300.0,109290.0,0.114184]
[1758903075471,0.8842156,109300.0,109290.0,0.114184]
[1758903075877,0.8842156,109300.0,109290.0,0.02274]
[1758903076079,0.113164,109290.0,109280.0,0.1264574]
[1758903076572,0.02172,109290.0,109280.0,0.42177959]
[1758903076782,1.24352,109300.0,109290.0,0.126224]
[1758903076972,0.38352,109300.0,109290.0,0.42154619]
[1758903077384,0.4749557,109300.0,109290.0,0.42154619]
[1758903077987,0.38252,109300.0,109290.0,0.42154619]
[1758903078282,0.3608,109300.0,109290.0,0.42154619]
[1758903078488,0.38252,109300.0,109290.0,0.42154619]
[1758903078885,0.38352,109300.0,109290.0,0.42154619]
[1758903080876,0.3618,109300.0,109290.0,0.51304168]
[1758903081386,0.38352,109300.0,109290.0,0.51304168]
[1758903081684,0.3618,109300.0,109290.0,0.51304168]
[1758903081983,0.38352,109300.0,109290.0,0.51304168]
[1758903082379,0.3618,109300.0,109290.0,0.51304168]
[1758903082579,0.3618,109300.0,109290.0,0.91304168]
[1758903082782,0.3618,109300.0,109290.0,1.77272168]
[1758903083087,0.27647393,109300.0,109290.0,1.87115788]
[1758903083479,0.24147393,109300.0,109290.0,1.87115788]
[1758903083876,0.24147393,109300.0,109290.0,1.01147788]
[1758903084278,0.24147393,109300.0,109290.0,1.87107788]
[1758903084588,0.24147393,109300.0,109290.0,2.23985015]
[1758903084982,0.24147393,109300.0,109290.0,1.71229738]
[1758903085178,0.24147393,109300.0,109290.0,2.57185738]
[1758903086082,0.43409602,109310.0,109300.0,0.0914357]
[1758903086289,0.03435,109330.0,109320.0,0.113359]
[1758903086476,0.03435,109330.0,109320.0,0.77745346]
[1758903086681,0.1257606,109330.0,109320.0,0.77745346]
[1758903087087,0.1257606,109330.0,109320.0,0.113359]
[1758903087291,0.1257606,109330.0,109320.0,0.44540623]
[1758903087890,0.1976757,109330.0,109320.0,0.44540623]
[1758903088685,0.20887871,109330.0,109320.0,0.44540623]
[1758903088885,0.20887871,109330.0,109320.0,0.113359]
[1758903089085,0.20887871,109330.0,109320.0,0.44540623]
[1758903090391,0.11746811,109330.0,109320.0,0.44540623]
[1758903090595,0.20887871,109330.0,109320.0,0.44540623]
[1758903091191,0.54092594,109330.0,109320.0,0.44540623]
[1758903091793,0.20887871,109330.0,109320.0,0.44540623]
[1758903093691,0.54092594,109330.0,109320.0,0.113359]
[1758903093887,0.94092594,109330.0,109320.0,0.44540623]
[1758903094392,0.60887871,109330.0,109320.0,0.113359]
[1758903094587,0.94092594,109330.0,109320.0,0.44540623]
[1758903095490,0.94092594,109330.0,109320.0,0.113359]
[1758903095687,0.60887871,109330.0,109320.0,0.44540623]
[1758903096094,0.94092594,109330.0,109320.0,0.44540623]
[1758903096788,0.94092594,109330.0,109320.0,0.091419]
[1758903097188,0.127589,109320.0,109310.0,0.112902]
[1758903097388,0.45963623,109320.0,109310.0,0.44494923]
[1758903098095,0.127589,109320.0,109310.0,0.44494923]
[1758903098294,0.128589,109320.0,109310.0,0.44494923]
[1758903098889,0.03717,109320.0,109310.0,0.44494923]
[1758903099194,0.001,109320.0,109310.0,1.26847521]
[1758903099384,0.001,109320.0,109310.0,0.86847521]
[1758903099585,0.001,109320.0,109310.0,0.53642798]
[1758903099792,0.02425,109320.0,109310.0,0.53642798]
[1758903100190,0.001,109320.0,109310.0,0.53642798]
[1758903100891,0.001,109320.0,109310.0,0.54554185]
[1758903101294,0.001,109320.0,109310.0,1.27758908]
[1758903101491,0.001,109320.0,109310.0,1.26847521]
[1758903101891,0.001,109320.0,109310.0,0.87775523]
[1758903102798,0.001,109320.0,109310.0,1.27775523]
[1758903106589,0.0719151,109330.0,109320.0,0.1259684]
[1758903106901,0.1239063,109350.0,109340.0,0.1128817]
[1758903107197,0.10594734,109350.0,109340.0,0.44492893]
[1758903108199,0.19734084,109350.0,109340.0,0.44492893]
[1758903108593,0.20234084,109350.0,109340.0,0.44492893]
[1758903108795,0.07843734,109350.0,109340.0,0.45197893]
[1758903108995,0.07843734,109350.0,109340.0,0.87547981]
[1758903109194,0.07843734,109350.0,109340.0,1.73371981]
[1758903109797,0.07843734,109350.0,109340.0,2.13371981]
[1758903110702,0.07643734,109350.0,109340.0,2.13371981]
[1758903111003,0.003,109350.0,109340.0,2.13371981]
[1758903111390,0.04513465,109360.0,109350.0,0.0913935]
[1758903111594,0.03221465,109360.0,109350.0,0.68557446]
[1758903111903,0.04513465,109360.0,109350.0,1.63768796]
[1758903112088,0.04513465,109360.0,109350.0,1.72914161]
[1758903112291,0.04513465,109360.0,109350.0,1.06504715]
[1758903112696,0.04513465,109360.0,109350.0,1.39709438]
[1758903113496,0.13651975,109360.0,109350.0,1.30570088]
[1758903113694,0.13651975,109360.0,109350.0,1.39709438]
[1758903114094,0.13751975,109360.0,109350.0,0.53637438]
[1758903114294,0.13751975,109360.0,109350.0,0.11293365]
[1758903114593,0.21062142,109360.0,109350.0,0.44498088]
[1758903114996,0.10631632,109360.0,109350.0,0.53637438]
[1758903115199,0.11027167,109360.0,109350.0,0.86842161]
[1758903115503,0.09735167,109360.0,109350.0,0.86842161]
[1758903116299,0.20165677,109360.0,109350.0,0.53637438]
[1758903117203,0.533704,109360.0,109340.0,0.9545969]
[1758903117402,0.1275635,109350.0,109340.0,0.9760769]
[1758903117705,0.1275635,109350.0,109340.0,1.39956942]
[1758903118102,0.85961073,109350.0,109340.0,0.97612529]
[1758903118304,0.85961073,109350.0,109340.0,0.8632]
[1758903118504,0.85961073,109350.0,109340.0,1.19624723]
[1758903118907,0.85961073,109350.0,109340.0,0.001]
[1758903119104,0.85961073,109350.0,109340.0,0.33304723]
[1758903119805,0.85961073,109350.0,109340.0,0.44592903]
[1758903120008,0.5275635,109350.0,109340.0,0.44592903]
[1758903120310,0.03617,109350.0,109340.0,0.44592903]
[1758903120703,0.1275635,109350.0,109340.0,0.44592903]
[1758903121303,0.03617,109350.0,109340.0,0.44592903]
[1758903121912,0.5275637,109350.0,109340.0,0.44592903]
[1758903122611,0.85961093,109350.0,109340.0,0.44592903]
[1758903122807,0.85961093,109350.0,109340.0,0.42444903]
[1758903123106,0.5275637,109350.0,109340.0,0.44592903]
[1758903123411,0.85961093,109350.0,109340.0,0.42444903]
[1758903123610,0.85961093,109350.0,109340.0,0.001]
[1758903124611,0.85961093,109350.0,109340.0,0.113882]
[1758903124808,0.85961093,109350.0,109340.0,0.42444923]
[1758903125008,0.5275637,109350.0,109340.0,0.33304723]
[1758903125210,0.85961093,109350.0,109340.0,0.001]
[1758903126617,0.5275637,109350.0,109340.0,0.001]
[1758903126814,0.85961093,109350.0,109340.0,0.001]
[1758903127018,0.85961093,109350.0,109340.0,0.092402]
[1758903129021,0.45961093,109350.0,109340.0,0.44547923]
[1758903129220,1.33609093,109350.0,109340.0,0.44547923]
[1758903129921,0.45961093,109350.0,109340.0,0.44547923]
[1758903130122,1.0040437,109350.0,109340.0,0.44547923]
[1758903130420,0.0599101,109350.0,109340.0,0.44547923]
[1758903130623,0.11755034,109360.0,109350.0,0.1124238]
[1758903130814,0.11755034,109360.0,109350.0,0.78935826]
[1758903130815,0.07310167,109360.0,109350.0,0.78935826]
[1758903131021,0.1268377,109370.0,109360.0,0.1124154]
[1758903131229,0.40167529,109370.0,109360.0,0.44446263]
[1758903131427,0.93563529,109370.0,109360.0,0.44446263]
[1758903131730,1.03607708,109370.0,109360.0,0.44446263]
[1758903132025,0.15963708,109370.0,109360.0,0.1124154]
[1758903132223,0.15057229,109370.0,109360.0,0.1124154]
[1758903132422,0.15057229,109370.0,109360.0,0.44446263]
[1758903132622,0.15057229,109370.0,109360.0,0.1124154]
[1758903132822,0.05919529,109370.0,109360.0,0.1124154]
[1758903133126,0.03546,109370.0,109360.0,0.45806877]
[1758903133822,0.128837,109370.0,109360.0,0.45806877]
[1758903134027,0.0375,109370.0,109360.0,0.45806877]
[1758903135531,0.20110208,109370.0,109360.0,0.45806877]
[1758903135726,0.128877,109370.0,109360.0,0.45806877]
[1758903136124,0.128877,109370.0,109360.0,0.1124154]
[1758903136331,0.1268853,109360.0,109350.0,0.0913912]
[1758903136529,0.1268853,109360.0,109350.0,0.1124212]
[1758903137623,0.1278853,109360.0,109350.0,0.1124212]
[1758903140232,0.1278853,109360.0,109350.0,0.02103]
[1758903140427,0.0355,109350.0,109340.0,1.31349017]
[1758903140633,0.1268936,109350.0,109340.0,1.31349017]
[1758903141134,0.1268936,109350.0,109340.0,0.45808017]
[1758903141737,0.1268936,109350.0,109340.0,0.1134268]
[1758903142031,0.1268936,109350.0,109340.0,0.45908017]
[1758903144327,0.0355,109350.0,109340.0,0.45908017]
[1758903144524,0.0355,109350.0,109340.0,0.1134268]
[1758903144726,0.1268935,109350.0,109340.0,0.1134268]
[1758903145527,0.1268935,109350.0,109340.0,0.1134318]
[1758903146022,0.5268935,109350.0,109340.0,0.001]
[1758903146632,0.5268935,109350.0,109340.0,0.1134321]
[1758903146821,0.5278935,109350.0,109340.0,0.0914021]
[1758903148627,0.1269053,109340.0,109330.0,0.0914052]
[1758903149335,0.1269053,109340.0,109330.0,0.1124352]
[1758903149741,0.0355,109340.0,109330.0,0.1124352]
[1758903150029,0.0355,109340.0,109330.0,0.1134352]
[1758903151133,0.044855,109340.0,109330.0,0.1134352]
[1758903151430,0.0355,109340.0,109330.0,0.42252692]
[1758903152727,0.0355,109340.0,109330.0,0.1134352]
[1758903154742,0.0355,109340.0,109330.0,0.40852211]
[1758903154940,0.02211327,109350.0,109340.0,0.0914023]
[1758903155141,0.02211327,109350.0,109340.0,0.40839921]
[1758903155142,0.04373327,109350.0,109340.0,0.40839921]
[1758903155343,0.13512717,109350.0,109340.0,0.40839921]
[1758903156142,0.13612717,109350.0,109340.0,0.40839921]
[1758903157847,0.04473327,109350.0,109340.0,0.40839921]
[1758903159045,0.1269739,109350.0,109340.0,0.40839921]
[1758903160148,0.03558,109350.0,109340.0,0.40839921]
[1758903161044,0.03558,109350.0,109340.0,0.1133123]
[1758903161245,0.1269738,109350.0,109340.0,0.40839921]
[1758903161846,0.13625782,109350.0,109340.0,0.40839921]
[1758903162348,0.04486402,109350.0,109340.0,0.40839921]
[1758903162543,0.03558,109350.0,109340.0,0.1133123]
[1758903162746,0.03558,109350.0,109340.0,0.40839921]
[1758903165448,0.13589717,109350.0,109340.0,0.40839921]
[1758903165648,0.13589717,109350.0,109340.0,0.1133123]
[1758903165845,0.13589717,109350.0,109340.0,0.40839921]
[1758903166148,0.04450337,109350.0,109340.0,0.40839921]
[1758903166338,0.03558,109350.0,109340.0,0.40839921]
[1758903166539,0.1269739,109350.0,109340.0,0.40839921]
[1758903166840,0.1269739,109350.0,109340.0,0.1133123]
[1758903167040,0.1269739,109350.0,109340.0,0.40839921]
[1758903167448,0.03558,109350.0,109340.0,0.40839921]
[1758903167952,0.02262,109350.0,109340.0,0.41492921]
[1758903168242,0.1278539,109350.0,109340.0,0.40839921]
[1758903172640,0.1278539,109350.0,109340.0,0.1133123]
[1758903172840,0.1278539,109350.0,109340.0,0.40839921]
[1758903173958,0.1278539,109350.0,109340.0,0.31699691]
[1758903174243,0.1268621,109340.0,109330.0,0.0914049]
[1758903174439,0.1268621,109340.0,109330.0,0.1133149]
[1758903174840,0.1268621,109340.0,109330.0,0.40840181]
[1758903175750,0.1268621,109340.0,109330.0,0.40940181]
[1758903176051,0.1268621,109340.0,109330.0,0.38749181]
[1758903176450,0.1268621,109340.0,109330.0,0.0924049]
[1758903177448,0.1268621,109340.0,109330.0,0.1143149]
[1758903178253,0.1268621,109340.0,109330.0,0.0924049]
[1758903178451,0.1268621,109340.0,109330.0,0.1143149]
[1758903179645,0.5268621,109340.0,109330.0,0.001]
[1758903179950,0.55066527,109340.0,109330.0,0.1143205]
[1758903180458,0.55066527,109340.0,109330.0,0.0924105]
[1758903180752,0.55066527,109340.0,109330.0,0.1143205]
[1758903181248,0.5268621,109340.0,109330.0,0.40940741]
[1758903181840,0.5268621,109340.0,109330.0,0.40840741]
[1758903182044,0.5268621,109340.0,109330.0,0.40940741]
[1758903183252,0.5268621,109340.0,109330.0,0.40840741]
[1758903183554,0.5288621,109340.0,109330.0,0.40840741]
[1758903185157,0.5288621,109340.0,109330.0,0.1133205]
[1758903185458,0.5288621,109340.0,109320.0,0.40943821]
[1758903185459,0.1275907,109330.0,109320.0,0.40943821]
[1758903185649,0.20070512,109330.0,109320.0,0.40943821]
[1758903186159,0.10929442,109330.0,109320.0,0.40943821]
[1758903186658,0.11029442,109330.0,109320.0,0.40943821]
[1758903187159,0.20170492,109330.0,109320.0,0.40943821]
[1758903187958,0.11029442,109330.0,109320.0,0.40943821]
[1758903189060,0.20170502,109330.0,109320.0,0.40943821]
[1758903189860,0.11029442,109330.0,109320.0,0.40943821]
[1758903191355,0.09671442,109330.0,109320.0,0.82227821]
[1758903191655,0.09538442,109330.0,109320.0,0.82227821]
[1758903191956,0.09438442,109330.0,109320.0,0.82227821]
[1758903192161,0.09438442,109330.0,109320.0,0.82327821]
[1758903192859,0.09438442,109330.0,109320.0,0.81043821]
[1758903192860,0.10711442,109330.0,109320.0,0.81043821]
[1758903194462,0.19852502,109330.0,109320.0,0.81043821]
[1758903195060,0.10711442,109330.0,109320.0,0.81043821]
[1758903195956,0.19852502,109330.0,109320.0,0.81043821]
[1758903196463,0.19852502,109330.0,109320.0,0.80943821]
[1758903196761,0.19852502,109330.0,109320.0,0.81043821]
[1758903197861,0.19852502,109330.0,109320.0,0.1153513]
[1758903198563,0.89461193,109330.0,109320.0,0.0914113]
[1758903198765,0.1254229,109320.0,109310.0,0.1135703]
[1758903199763,0.034,109320.0,109310.0,0.40865721]
[1758903199964,0.034,109320.0,109310.0,0.40965721]
[1758903200363,1.07041132,109330.0,109320.0,0.1135689]
[1758903200663,1.07041132,109330.0,109320.0,0.40865581]
[1758903201766,1.07141132,109330.0,109320.0,0.40865581]
[1758903203166,1.07141132,109330.0,109320.0,0.1135689]
[1758903204259,1.09521993,109330.0,109320.0,0.40865581]
[1758903204668,1.09521993,109330.0,109320.0,0.1135689]
[1758903204870,0.01273,109320.0,109310.0,0.1135703]
[1758903205064,0.1254189,109320.0,109310.0,0.40865721]
[1758903205766,0.1254188,109320.0,109310.0,0.1135703]
[1758903206164,0.1254188,109320.0,109310.0,0.40865721]
[1758903206367,0.1254188,109320.0,109310.0,0.40965721]
[1758903206568,0.1254188,109320.0,109310.0,0.44669334]
[1758903207368,0.13460203,109320.0,109310.0,0.44669334]
[1758903209072,0.13460203,109320.0,109310.0,0.1145703]
[1758903209271,0.13460203,109320.0,109310.0,0.44669334]
[1758903211159,0.034,109320.0,109310.0,0.44669334]
[1758903211365,0.02127,109320.0,109310.0,0.45374334]
[1758903211563,0.1126887,109320.0,109310.0,0.45374334]
[1758903211871,0.1254187,109320.0,109310.0,0.44669334]
[1758903212073,0.13471333,109320.0,109310.0,0.44669334]
[1758903214169,0.13471363,109320.0,109310.0,0.44669334]
[1758903214372,0.034,109320.0,109310.0,0.44669334]
[1758903214772,0.1254187,109320.0,109310.0,0.44669334]
[1758903214973,0.034,109320.0,109310.0,0.45374334]
[1758903215476,0.034,109320.0,109310.0,0.44669334]
[1758903216375,0.1254187,109320.0,109310.0,0.44669334]
[1758903216574,0.1254187,109320.0,109310.0,0.1145703]
[1758903216775,0.1254187,109320.0,109310.0,0.44669334]
[1758903218370,0.1254187,109320.0,109310.0,0.1145703]
[1758903218566,0.1254187,109320.0,109310.0,0.44670004]
[1758903218772,0.45754174,109320.0,109310.0,0.44670004]
[1758903219079,0.1254187,109320.0,109310.0,0.44670004]
[1758903223278,0.45754174,109320.0,109310.0,0.44670004]
[1758903224881,0.1254187,109320.0,109310.0,0.44670004]
[1758903225083,0.1254189,109320.0,109310.0,0.44670004]
[1758903225280,0.1254189,109320.0,109310.0,0.114577]
[1758903225483,0.1254189,109320.0,109310.0,0.44670004]
[1758903225776,0.034,109320.0,109310.0,0.44670004]
[1758903227684,0.1254185,109320.0,109310.0,0.44670004]
[1758903229486,0.034,109320.0,109310.0,0.44670004]
[1758903229786,0.1254188,109320.0,109310.0,0.44670004]
[1758903230684,0.034,109320.0,109310.0,0.44670004]
[1758903232795,0.1254188,109320.0,109310.0,0.44670004]
[1758903233099,0.45754184,109320.0,109310.0,0.44670004]
[1758903233693,0.1254188,109320.0,109310.0,0.44670004]
[1758903236100,0.034,109320.0,109310.0,0.44670004]
[1758903240901,0.02127,109320.0,109310.0,0.78587308]
[1758903241204,0.02127,109320.0,109310.0,0.45375004]
[1758903241700,0.98063807,109330.0,109320.0,0.1145388]
[1758903241999,0.10785442,109330.0,109320.0,0.77878488]
[1758903242387,0.11682414,109330.0,109320.0,0.77878488]
[1758903243000,0.11782414,109330.0,109320.0,0.1145388]
[1758903243194,0.20923454,109330.0,109320.0,0.44666184]
[1758903244296,0.54135758,109330.0,109320.0,0.44666184]
[1758903244700,0.56516647,109330.0,109320.0,0.44666184]
[1758903246091,0.56516647,109330.0,109320.0,0.1145384]
[1758903246292,0.56516647,109330.0,109320.0,0.0914184]
[1758903246696,0.56516647,109330.0,109320.0,0.44496144]
[1758903248803,0.23304343,109330.0,109320.0,0.44496144]
[1758903249017,0.14163303,109330.0,109320.0,0.77708448]
[1758903249306,0.14163303,109330.0,109320.0,0.78992448]
[1758903249307,0.10885442,109330.0,109320.0,0.78992448]
[1758903250207,0.10885442,109330.0,109320.0,0.77708448]
[1758903251012,0.07411442,109330.0,109320.0,0.88139486]
[1758903251509,0.09739442,109330.0,109320.0,0.88139486]
[1758903255508,0.07411442,109330.0,109320.0,0.88139486]
[1758903256008,0.07311442,109330.0,109320.0,0.88239486]
[1758903256210,0.02310486,109340.0,109320.0,0.88239486]
[1758903256406,0.04638486,109340.0,109330.0,0.44495314]
[1758903257706,0.13778656,109340.0,109330.0,0.1128301]
[1758903257905,0.4699096,109340.0,109330.0,0.44495314]
[1758903258411,0.4709096,109340.0,109330.0,0.44495314]
[1758903261306,0.4709096,109340.0,109330.0,0.1128301]
[1758903261504,1.3344296,109340.0,109330.0,0.44495314]
[1758903265008,1.35821337,109340.0,109330.0,0.1128301]
[1758903265212,1.35821337,109340.0,109330.0,0.44495314]
[1758903267115,1.35821337,109340.0,109330.0,0.02142]
[1758903267313,1.75821337,109340.0,109330.0,0.0914102]
[1758903267813,0.1279504,109330.0,109320.0,0.1128335]
[1758903268009,0.46007344,109330.0,109320.0,0.1128335]
[1758903268213,0.46007344,109330.0,109320.0,0.0914135]
[1758903268413,0.1279504,109330.0,109320.0,0.0914135]
[1758903268714,0.89495668,109330.0,109320.0,0.0914135]
[1758903269023,0.89495668,109330.0,109320.0,0.1128335]
[1758903269312,0.89495668,109330.0,109320.0,0.1138335]
[1758903269815,0.89495668,109330.0,109320.0,0.0924135]
[1758903270315,0.89495668,109330.0,109320.0,0.001]
[1758903270816,0.91873941,109330.0,109320.0,0.001]
[1758903271216,0.62348018,109330.0,109320.0,0.02242]
[1758903271513,1.08684018,109330.0,109320.0,0.1138387]
[1758903271916,0.22348018,109330.0,109320.0,0.1138387]
[1758903272115,1.08680018,109330.0,109320.0,0.1138387]
[1758903272415,1.06301745,109330.0,109320.0,0.1138387]
[1758903276418,1.06297745,109330.0,109320.0,0.40909793]
[1758903276821,1.06297745,109330.0,109320.0,0.1138387]
[1758903277120,1.06297745,109330.0,109320.0,0.40909793]
[1758903277623,1.06297745,109330.0,109320.0,0.1138387]
[1758903278811,1.06297745,109330.0,109320.0,0.40909793]
[1758903279722,1.06297745,109330.0,109320.0,0.1138387]
[1758903279921,1.06297745,109330.0,109320.0,0.40909793]
[1758903280424,1.06285745,109330.0,109320.0,0.40909793]
[1758903281312,0.19969745,109330.0,109320.0,0.40909793]
[1758903281517,1.06285745,109330.0,109320.0,0.40909793]
[1758903284625,1.06285745,109330.0,109320.0,0.1138387]
[1758903284817,1.06285745,109330.0,109320.0,0.40909793]
[1758903286130,1.06285745,109330.0,109320.0,0.1138387]
[1758903286424,1.75811668,109330.0,109320.0,0.001]
[1758903286628,1.7819014,109330.0,109320.0,0.001]
[1758903286924,1.7819014,109330.0,109320.0,0.0924185]
[1758903287127,1.7819014,109330.0,109320.0,0.1147085]
[1758903287521,1.7819014,109330.0,109320.0,0.0924185]
[1758903287718,1.7819014,109330.0,109320.0,0.1147085]
[1758903288121,0.22348217,109330.0,109320.0,0.40996773]
[1758903288321,1.06273745,109330.0,109320.0,0.40996773]
[1758903288725,1.06273745,109330.0,109320.0,0.1147085]
[1758903289230,1.06273745,109330.0,109320.0,0.02329]
[1758903289428,1.06273745,109330.0,109320.0,0.1147084]
[1758903289631,1.08652767,109330.0,109320.0,0.1147084]
[1758903290822,1.06273745,109330.0,109320.0,0.1147084]
[1758903292331,1.08653622,109330.0,109320.0,0.1147084]
[1758903300349,1.08653622,109330.0,109320.0,0.001]
[1758903300540,1.38179545,109330.0,109320.0,0.001]
[1758903301949,1.38179545,109330.0,109320.0,0.1147084]
[1758903302151,1.08653622,109330.0,109320.0,0.1147084]
[1758903306748,0.22349622,109330.0,109320.0,0.40996763]
[1758903306951,1.08593622,109330.0,109320.0,0.40996763]
[1758903308151,1.08593622,109330.0,109320.0,0.1147084]
[1758903311455,1.38119545,109330.0,109320.0,0.0924184]
[1758903311857,1.38119545,109330.0,109320.0,0.001]
[1758903312156,1.38119545,109330.0,109300.0,0.1126372]
[1758903312157,0.1044467,109310.0,109300.0,0.1126372]
[1758903312354,0.9889467,109310.0,109300.0,0.1126372]
[1758903313356,0.9889467,109310.0,109300.0,0.1166372]
[1758903315459,0.9899467,109310.0,109300.0,0.1126372]
[1758903315755,0.126675,109300.0,109290.0,0.40790743]
[1758903316259,0.03524,109300.0,109290.0,0.40790743]
[1758903318763,0.02222,109300.0,109290.0,0.42074743]
[1758903319260,0.02222,109310.0,109300.0,0.119175]
[1758903319457,0.03524,109320.0,109310.0,0.1126366]
[1758903319655,0.02222,109320.0,109310.0,0.41494583]
[1758903319854,0.10722705,109330.0,109320.0,0.1191582]
[1758903320161,0.40502705,109330.0,109320.0,0.40788743]
[1758903320363,0.49643695,109330.0,109320.0,0.02121]